Cogmind - Beta 12 @@@ ROGUE MODE // 2024.02.27 @ 00:45:25 Player: Takagiro Result: Destroyed by G-34 Mercenary with Small Laser Performance ------------- Evolutions (0) 0 Regions Visited (2) 400 Robots Destroyed (7) 35 Value Destroyed (182) 182 Prototype IDs (0) 0 Alien Tech Used (0) 0 Bonus (0) 0 TOTAL SCORE: 617 Bonus ------- None Cogmind --------- Core Integrity 0/250 Matter 300/300 Energy 99/100 System Corruption 0% Temperature Cool (12) Movement Core (100) Ox1 Location -10/Mines Parts ------- > --- POWER (1) -------- (None) > --- PROPULSION (2) --- (None) > --- UTILITY (2) ------ Small Storage Unit > --- WEAPON (2) ------- (None) > --- INVENTORY (8) ---- Light Ion Engine Light Nuclear Core Light Treads Signal Generator Peak State ------------ > --- POWER ------------ Light Ion Engine > --- PROPULSION ------- Compact Wheel Compact Wheel > --- UTILITY ---------- Small Storage Unit > --- WEAPON ----------- Particle Gun Assault Rifle > --- INVENTORY -------- Light Ion Engine Light Ion Engine Light Nuclear Core Light Treads Light Treads Aluminum Leg Aluminum Leg Light Assault Rifle [Rating: 8] Favorites ----------- Power Light Ion Engine Engine Light Ion Engine Propulsion Compact Wheel Treads Light Treads Leg Aluminum Leg Wheel Compact Wheel Utility Small Storage Unit Storage Small Storage Unit Weapon Assault Rifle Energy Gun Particle Gun Ballistic Gun Assault Rifle Build | -11 -10 -10 ------- Run | Jun Mat Min Slots Evolved . | . . . Power . | . . . Propulsion . | . . . Utility . | . . . Weapon . | . . . Parts Attached 12 | 6 . 6 Power 2 | 1 . 1 Engine 2 | 1 . 1 Core . | . . . Reactor . | . . . Propulsion 5 | 2 . 3 Treads 1 | . . 1 Leg 2 | . . 2 Wheel 2 | 2 . . Hover . | . . . Flight . | . . . Utility 1 | 1 . . Device . | . . . Storage 1 | 1 . . Processor . | . . . Hackware . | . . . Protection . | . . . Artifact . | . . . Weapon 4 | 2 . 2 Energy Gun 2 | 1 . 1 Energy Cannon . | . . . Ballistic Gun 2 | 1 . 1 Ballistic Cannon . | . . . Launcher . | . . . Special Weapon . | . . . Impact Weapon . | . . . Slashing Weapon . | . . . Piercing Weapon . | . . . Special Melee Weapon . | . . . Unidentified Prototypes . | . . . Parts Lost 9 | . . 9 Power 2 | . . 2 Propulsion 4 | . . 4 Utility . | . . . Weapon 3 | . . 3 Highest Loss Streak 8 | . . 8 To Critical Strikes . | . . . Average Slot Usage (%) 78 | . . 78 Engine 12 | . . 12 Leg 15 | . . 15 Wheel 10 | . . 10 Storage 14 | . . 14 Energy Gun 12 | . . 12 Ballistic Gun 13 | . . 13 Naked Turns . | . . . Heaviest Build 13 | 11 11 13 Greatest Support 32 | 32 32 32 Greatest Overweight (x) 2 | . . 2 Average Overweight (x) . | . . . Largest Inventory Capacity 8 | 8 8 8 Average Capacity 7 | 7 8 8 Most Carried 8 | 8 8 8 Average Carried 6 | 5 8 6 Final Capacity 8 | 8 8 8 Final Carried 8 | 8 8 4 Class Distribution -------------------- 100% | Mutant Dominant Class ---------------- Mutant | -10/Materials Mutant | -10/Mines Resources | -11 -10 -10 ----------- Run | Jun Mat Min Matter Collected 377 | 275 . 102 Remotely . | . . . Salvage Created 321 | 118 . 203 Parts 17 | 9 . 8 Haulers Intercepted . | . . . Recyclers Shooed . | . . . Parts Field Recycled . | . . . Retrieved Matter . | . . . Parts Self-Destructed . | . . . Prevented . | . . . Kills | -11 -10 -10 ------- Run | Jun Mat Min Combat Hostiles Destroyed 4 | . . 4 Guns 4 | . . 4 Classes Destroyed 3 | 2 . 1 Tunneler 2 | 2 . . Recycler 1 | 1 . . Grunt 4 | . . 4 Best Kill Streak 3 | 3 . 2 Combat Bots Only 2 | . . 2 Max Kills in Single Turn 1 | 1 . 1 Gunslinging . | . . . Exploded . | . . . Melee . | . . . Uniques/NPCs Destroyed . | . . . Combat | -11 -10 -10 -------- Run | Jun Mat Min Damage Taken 1046 | . . 1046 Core 251 | . . 251 Absorbed by Shields . | . . . Core Remaining (%) 100 | 100 . . Volleys Fired 38 | 5 . 33 Largest 2 | 2 . 2 Hottest 85 | 60 . 85 Shots Fired 66 | 8 . 58 Gun 66 | 8 . 58 Cannon . | . . . Launcher . | . . . Special . | . . . Kinetic 38 | 5 . 33 Thermal 28 | 3 . 25 Explosive . | . . . Electromagnetic . | . . . Robot Hit Streak 8 | 5 . 8 Robot Miss Streak 2 | 1 . 2 Penetration Max . | . . . Secondary Targets . | . . . Shots Hit Robots 47 | 6 . 41 Core Hits 19 | 4 . 15 Critical Kills 1 | . . 1 Critical Parts Destroyed . | . . . Critical Strikes 1 | . . 1 Destroy 1 | . . 1 Melee Attacks . | . . . Impact . | . . . Slashing . | . . . Piercing . | . . . Sneak Attacks . | . . . Combat Hostiles . | . . . Follow-up Attacks . | . . . Damage Inflicted 614 | 83 . 531 Guns 607 | 83 . 524 Cannons . | . . . Explosions . | . . . Melee . | . . . Ramming 7 | . . 7 Kinetic 306 | 48 . 258 Thermal 301 | 35 . 266 Explosive . | . . . Electromagnetic . | . . . Impact . | . . . Slashing . | . . . Piercing . | . . . Highest Corruption . | . . . Average Corruption . | . . . Corruption Purged . | . . . Corruption Blocked . | . . . Overload Shots . | . . . Overflow Damage . | . . . Projectiles . | . . . Explosions . | . . . Melee . | . . . Knockbacks . | . . . Impact . | . . . Kinetic . | . . . Secondary . | . . . Self-Inflicted Damage . | . . . Shots . | . . . Rammed 3 | . . 3 Targets Rammed 4 | . . 4 Kicked 1 | . . 1 Crushed . | . . . Highest Temperature 174 | . . 174 Average Temperature 69 | . . 69 Received Heat Transfer 615 | . . 615 Siege Activations . | . . . Robots Corrupted . | . . . Combat Hostiles . | . . . Parts Fried . | . . . Impact Corruptions . | . . . Robots Melted . | . . . Combat Hostiles . | . . . Parts Melted . | . . . Heat Transferred 706 | 75 . 631 Parts Sabotaged . | . . . Parts Stolen . | . . . Parts Stripped . | . . . Power Chain Reactions . | . . . Missiles Intercepted . | . . . Alert | -11 -10 -10 ------- Run | Jun Mat Min Peak Influence 93 | 15 9 93 Initial 9 | . 9 3 Average 51 | 4 9 64 Maximum Alert Level . | . . . Low Security (%) 100 | 100 100 100 Level 1 . | . . . Level 2 . | . . . Level 3 . | . . . Level 4 . | . . . Level 5 . | . . . High Security . | . . . Max Security . | . . . Squads Dispatched 1 | . . 1 Investigation . | . . . Extermination . | . . . Reinforcement . | . . . Assault 1 | . . 1 Garrison . | . . . Intercept . | . . . Searches Triggered . | . . . Construction Impeded . | . . . Haulers Reinforced . | . . . Active Scanning Responses . | . . . Cargo Convoy Interrupts . | . . . Stealth | -11 -10 -10 --------- Run | Jun Mat Min Distress Signals . | . . . Communications Jammed . | . . . Distress Signals . | . . . Times Spotted 19 | . . 19 Peak Tracking Total 9 | . . 9 Tactical Retreats . | . . . Traps | -11 -10 -10 ------- Run | Jun Mat Min Traps Triggered . | . . . Indirectly . | . . . Trap Hack Attempts . | . . . Triggered . | . . . Disarmed . | . . . Reprogrammed . | . . . Reused . | . . . Traps Extracted . | . . . Installed . | . . . Triggered . | . . . Machines | -11 -10 -10 ---------- Run | Jun Mat Min Machines Disabled . | . . . Max in Single Turn . | . . . Machines Repaired . | . . . Machines Sabotaged . | . . . Overloaded Fab Kills . | . . . Hacking | -11 -10 -10 --------- Run | Jun Mat Min Machines Accessed . | . . . Terminals . | . . . Fabricators . | . . . Repair Stations . | . . . Recycling Units . | . . . Scanalyzers . | . . . Garrison Access . | . . . Total Hacks . | . . . Successful . | . . . Failed . | . . . Catastrophic . | . . . Database Lockouts . | . . . Manual . | . . . Terminals . | . . . Fabricators . | . . . Repair Stations . | . . . Recycling Units . | . . . Scanalyzers . | . . . Garrison Access . | . . . Terminal Hacks . | . . . Fabricator Hacks . | . . . Repair Station Hacks . | . . . Recycling Unit Hacks . | . . . Scanalyzer . | . . . Garrison Access Hacks . | . . . Unauthorized Hacks . | . . . Terminals . | . . . Fabricators . | . . . Repair Stations . | . . . Recycling Units . | . . . Scanalyzers . | . . . Garrison Access . | . . . Data Cores Recovered . | . . . Used . | . . . Hacking Detections . | . . . Full Trace Events . | . . . Feedback Events . | . . . Feedback Blocked . | . . . Robot Schematics Acquired . | . . . Robots Built . | . . . Authchips . | . . . Time . | . . . Total Robot Build Rating . | . . . Part Schematics Acquired . | . . . Parts Built . | . . . Authchips . | . . . Time . | . . . Total Part Build Rating . | . . . Parts Repaired . | . . . Time . | . . . Parts Recycled . | . . . Recycled Matter . | . . . Retrieved Matter . | . . . Retrieved Components . | . . . Parts Scanalyzed . | . . . Part Schematics Acquired . | . . . Parts Damaged . | . . . Bothacking | -11 -10 -10 ------------ Run | Jun Mat Min Used RIF Installer . | . . . Robots Hacked . | . . . Non-combat . | . . . Combat . | . . . Robot Hacks Applied . | . . . Relay Couplers Released . | . . . Fabnet Peak Effective % . | . . . Robots Rewired . | . . . Allies Hacked . | . . . Hacks Repelled . | . . . Allies | -11 -10 -10 -------- Run | Jun Mat Min Total Allies 1 | . . 1 Largest Group 1 | . . 1 Highest-Rated Group 31 | . . 31 Highest-Rated Ally 31 | . . 31 Total Orders . | . . . Ally Attacks 4 | . . 4 Total Damage 87 | . . 87 Kills 3 | . . 3 Allies Corrupted . | . . . Allies Melted . | . . . Intel | -11 -10 -10 ------- Run | Jun Mat Min Robot Analysis Total . | . . . Derelict Logs Recovered 2 | . . 2 Drone Launches . | . . . Drone Recoveries . | . . . Exploration | -11 -10 -10 ------------- Run | Jun Mat Min Turns Passed 404 | 81 7 316 Spaces Moved 245 | 55 8 182 Core 22 | 14 . 8 Treads 6 | . . 6 Legs 121 | . . 121 Wheels 96 | 41 8 47 Hover . | . . . Flight . | . . . Fastest Speed 50 | 50 100 100 Average Speed 109 | 87 100 116 Slowest Speed 160 | 100 100 160 Overloaded Moves . | . . . Propulsion Burnouts . | . . . Robots Hopped . | . . . Cave-ins Triggered . | . . . Exploration Rate (%) 15 | 4 2 40 Regions Visited 2 Branch Regions 1 Pre-discovered Areas . | . . . Known Exits Taken . | . . . Unknown Exits Taken 2 | 1 1 . Scrap Searched . | . . . Spaces Dug . | . . . Terrain Destroyed . | . . . Melee . | . . . Projectile . | . . . AOE . | . . . Terrain Rammed . | . . . Walls Destroyed . | . . . Machines Disabled . | . . . Actions | -11 -10 -10 --------- Run | Jun Mat Min Total 316 | 79 7 230 Wait . | . . . Move 243 | 54 7 182 Hop . | . . . Pick Up 16 | 14 . 2 Fast Attach 1 | . . 1 Attach 11 | 6 . 5 Detach . | . . . Swap . | . . . Drop 3 | . . 3 Fire 38 | 5 . 33 Melee . | . . . Ram . | . . . Kick 1 | . . 1 Crush 3 | . . 3 Escape Stasis . | . . . Rewire . | . . . Trap . | . . . Miscellaneous . | . . . Route ------- -11/Junkyard -10/Materials -10/Mines History --------- Turn | Location | Event 11 | -11/Junkyard | Discovered new exit (range 15) 82 | -11/Junkyard | Entered Materials 82 | -10/Materials | Discovered new exit (range 7) 89 | -10/Materials | Entered Mines 153 | -10/Mines | Learned 2 Materials zone layouts 158 | -10/Mines | Learned Materials interactive machine intel 303 | -10/Mines | Met a Derelict testing a Signal Generator 312 | -10/Mines | Found Signal Generator 318 | -10/Mines | Build established: Mutant 328 | -10/Mines | Assembled infested the area 366 | -10/Mines | Core integrity fell below 50% 402 | -10/Mines | Core integrity fell below 20% 405 | -10/Mines | Destroyed by G-34 Mercenary with Small Laser Last Messages --------------- M-13 Machinist repairs Sml. Matter Pod. K-01 Serf collects debris. Aluminum Leg destroyed. K-01 Serf collects debris. Lgt. Assault Rifle destroyed. Aluminum Leg destroyed. K-01 Serf collects debris. Critical hit (Burn: +37). M-13 Machinist repairs G-47 Trooper. Acquired 11 matter. K-01 Serf collects debris. Acquired 6 matter. K-01 Serf collects debris. Lgt. Ion Engine destroyed. K-01 Serf collects debris. Slammed into G-34 Mercenary. K-01 Serf collects debris. Slammed into G-47 Trooper. Lgt. Treads destroyed. M-13 Machinist repairs G-34 Mercenary. Map ----- +----------------------------------------------------+ | ????????????????????????????????????##????# ## | | ??????????????????????????????????????????## #### | | ???????????????????????????????????????????# ### | | ???????????????????????????????????????????#[*## | | ???????????????????????????????????????????#%=## | | ???????????????????????????????????????????#!%# | | ??????????????????????????????????????????## | | ??????????????????????????????????????????# | | ??????????????????????????????????????????# # | | ??????????????????????????????????????????## ### | | ???????????????????????????????????????????# ###?? | | ???????????????????????????????????????????# ###?? | | ???????????????????????????????????????????# ### | | ???????????????????????????????????????????### | | ?????????????????????????????????????????????# ### | | ?????????????????????????????????????????????# #?? | | ???????????????????????????####??????????????# #?? | | ??????????????????????????? #??????????????#%#?? | | ???????????????????????????# #??????????????# #?? | | ???????????????????????????# #??????????????# #?? | | ???????????????????????????# #??????????????# #?? | | ??????????????????????????## #??????????????# #?? | | ?????????????????????????## ##?????????????# #?? | | ????????????????# ####### k m#?????????????# #?? | | ????????????????# k %########??????# ### | | ????????????????# @ g% #?###### | | ?????????????????########## g g ### ##### | | ??????????????????????????## g ####aa #??# | | ???????????????????????????## ##??#### ##?# | | ????????????????????????????#####??????## ### | | ???????????????????????????????????????## | | ??????????????????????????????????????## ! | | ??????????????????????????????????????# # # | | ???????????????????????????????? ## # | | ??????????????????????????????# ### # | | ????????????????????????????? % #?# # | | ????????????????????????????? % #?# # | | ?????????????????????????????? #?# # | | ?????????????????????????????? ##?# # | | ?????????????????????????????? ####??# # | | ??????????????????????????????? #??????# ? | | ??????????????????????????????? #???????? ? | | ???????????????????????????????? #####????????? ? | | ????????????????????????????????#???????????????#? | | ?????????????????????????????????????????????????? | | ?????????????????????????????????????????????????? | | ?????????????????????????????????????????????????? | | ?????????????????????????????????????????????????? | | ?????????????????????????????????????????????????? | | ?????????????????????????????????????????????????? | +----------------------------------------------------+ Best States ------------- Heat Dissipation 25 Energy Generation 10 Energy Capacity 125 Matter Stores 300 Matter Capacity 300 Sight Range 16 Terrain Scan Density 10 Evasion (%) 55 Recoil Reduction 1 Item Schematics ----------------- None Robot Schematics ------------------ None Fabricated ------------ Nothing Alien Tech Used ----------------- None Achievements -------------- None Challenges ------------ None Game ------ Seed AssembledPhaseTriangulator Manual? 0 Play Time 00:06:50 Cumulative 14.3 hours Start 2024.02.27 @ 00:39:46 End 2024.02.27 @ 00:45:25 Sessions 1 Manual Loads 0 Difficulty Rogue Special Mode None Game No. 28 Rogue 15 Adventurer 13 Explorer 0 Win Type - Total 0 Types 0/0/0/0/0/0/0/0/0 Lore% 13 Gallery% 18 Achievement% 14 Wizard Run 0 Options --------- ASCII 0 Keyboard 0 Movement Mouse Keybinds 0 Fullscreen 2 Font 18/SmallcapsGlow Map View 76x50 Tactical HUD 0 Map Filters NONE Filters NONE Steam 1 RUN: 01523206-9f75-4307-b3e8-9a807af42e25